[Event "Titled Tuesday Blitz January 31 Early 2023"]
[White "Hrbek, Stepan"]
[Black "Levitan, Caleb Levi"]
[WhiteFideId "393479"]
[BlackFideId "14332620"]
[WhiteElo "2306"]
[BlackElo "2129"]
[Result "1-0"]
[Round "11"]
[TimeControl "180+2"]
[Date "2023.01.31"]
[WhiteClock "0:01:09"]
[BlackClock "0:00:02"]

1. a4 {[%clk 0:03:00]}  e5 {[%clk 0:02:57]} 2. e4 {[%clk 0:03:00]}  Nf6 {[%clk 0:02:56]} 3. Nc3 {[%clk 0:02:58]}  Bb4 {[%clk 0:02:54]} 4. Nf3 {[%clk 0:02:58]}  d6 {[%clk 0:02:50]} 5. Bd3 {[%clk 0:02:57]}  c6 {[%clk 0:02:47]} 6. Ne2 {[%clk 0:02:56]}  O-O {[%clk 0:02:42]} 7. c3 {[%clk 0:02:56]}  Ba5 {[%clk 0:02:37]} 8. b4 {[%clk 0:02:55]}  Bc7 {[%clk 0:02:33]} 9. Bc2 {[%clk 0:02:54]}  Bg4 {[%clk 0:02:26]} 10. Ng3 {[%clk 0:02:53]}  Nbd7 {[%clk 0:02:23]} 11. h3 {[%clk 0:02:52]}  Be6 {[%clk 0:02:22]} 12. d3 {[%clk 0:02:51]}  d5 {[%clk 0:02:20]} 13. Qe2 {[%clk 0:02:48]}  dxe4 {[%clk 0:02:18]} 14. dxe4 {[%clk 0:02:49]}  Qe7 {[%clk 0:02:04]} 15. Nh4 {[%clk 0:02:38]}  Rfd8 {[%clk 0:01:13]} 16. Ngf5 {[%clk 0:02:28]}  Bxf5 {[%clk 0:01:12]} 17. Nxf5 {[%clk 0:02:28]}  Qe6 {[%clk 0:01:07]} 18. Rb1 {[%clk 0:02:23]}  Nf8 {[%clk 0:01:04]} 19. Bg5 {[%clk 0:02:16]}  N8d7 {[%clk 0:00:30]} 20. a5 {[%clk 0:01:48]}  h6 {[%clk 0:00:27]} 21. Be3 {[%clk 0:01:27]}  b6 {[%clk 0:00:20]} 22. a6 {[%clk 0:01:24]}  c5 {[%clk 0:00:19]} 23. Bb3 {[%clk 0:01:22]}  Qe8 {[%clk 0:00:19]} 24. b5 {[%clk 0:01:22]}  Nf8 {[%clk 0:00:16]} 25. f3 {[%clk 0:01:18]}  Ne6 {[%clk 0:00:16]} 26. g3 {[%clk 0:01:17]}  Rac8 {[%clk 0:00:10]} 27. Bc4 {[%clk 0:01:18]}  Bb8 {[%clk 0:00:10]} 28. h4 {[%clk 0:01:17]}  Nh5 {[%clk 0:00:09]} 29. Kf2 {[%clk 0:01:17]}  g6 {[%clk 0:00:07]} 30. Nxh6+ {[%clk 0:01:16]}  Kg7 {[%clk 0:00:07]} 31. Ng4 {[%clk 0:01:15]}  Nf6 {[%clk 0:00:07]} 32. Bh6+ {[%clk 0:01:15]}  Kh8 {[%clk 0:00:03]} 33. Nxf6 {[%clk 0:01:15]}  Qe7 {[%clk 0:00:03]} 34. Bg5 {[%clk 0:01:14]}  Nxg5 {[%clk 0:00:03]} 35. hxg5+ {[%clk 0:01:15]}  Kg7 {[%clk 0:00:03]} 36. Rh7+ {[%clk 0:01:14]}  Kf8 {[%clk 0:00:03]} 37. Rbh1 {[%clk 0:01:09]}  Qd6 {[%clk 0:00:02]} 38. Rxf7# {[%clk 0:01:09]} 1-0


[Site "https://www.chess.com"]

[Event "Titled Tuesday Blitz January 31 Early 2023"]
[White "kiwibobo"]
[Black "Vaglio Munoz, Jaime"]
[BlackFideId "6500145"]
[WhiteElo "2040"]
[BlackElo "2174"]
[Result "1-0"]
[Round "11"]
[TimeControl "180+2"]
[Date "2023.01.31"]
[WhiteClock "0:01:32"]
[BlackClock "0:00:05"]

1. e4 {[%clk 0:02:59]}  c6 {[%clk 0:00:25]} 2. d4 {[%clk 0:02:58]}  Qa5+ {[%clk 0:00:25]} 3. Nc3 {[%clk 0:02:56]}  b5 {[%clk 0:00:24]} 4. Bd2 {[%clk 0:02:48]}  b4 {[%clk 0:00:24]} 5. Nce2 {[%clk 0:02:44]}  Qb6 {[%clk 0:00:25]} 6. Nf3 {[%clk 0:02:44]}  d5 {[%clk 0:00:24]} 7. exd5 {[%clk 0:02:42]}  cxd5 {[%clk 0:00:25]} 8. c3 {[%clk 0:02:40]}  a5 {[%clk 0:00:18]} 9. Ne5 {[%clk 0:02:24]}  e6 {[%clk 0:00:16]} 10. Nf4 {[%clk 0:02:23]}  Nf6 {[%clk 0:00:15]} 11. Qa4+ {[%clk 0:02:22]}  Bd7 {[%clk 0:00:15]} 12. Nxd7 {[%clk 0:02:22]}  Nbxd7 {[%clk 0:00:15]} 13. Bb5 {[%clk 0:02:22]}  Bd6 {[%clk 0:00:13]} 14. Nd3 {[%clk 0:02:18]}  Qc7 {[%clk 0:00:09]} 15. O-O {[%clk 0:02:15]}  O-O {[%clk 0:00:09]} 16. h3 {[%clk 0:02:11]}  bxc3 {[%clk 0:00:10]} 17. bxc3 {[%clk 0:02:09]}  Nb6 {[%clk 0:00:11]} 18. Qc2 {[%clk 0:02:02]}  Nc4 {[%clk 0:00:11]} 19. Bg5 {[%clk 0:01:59]}  Be7 {[%clk 0:00:11]} 20. Bxc4 {[%clk 0:01:55]}  dxc4 {[%clk 0:00:10]} 21. Ne5 {[%clk 0:01:55]}  h6 {[%clk 0:00:11]} 22. Bf4 {[%clk 0:01:55]}  Bd6 {[%clk 0:00:10]} 23. Rfe1 {[%clk 0:01:52]}  Nd5 {[%clk 0:00:10]} 24. Bg3 {[%clk 0:01:50]}  Bxe5 {[%clk 0:00:09]} 25. Bxe5 {[%clk 0:01:47]}  Qc6 {[%clk 0:00:10]} 26. Qe4 {[%clk 0:01:46]}  Qa4 {[%clk 0:00:08]} 27. Qg4 {[%clk 0:01:45]}  f6 {[%clk 0:00:08]} 28. Qxe6+ {[%clk 0:01:45]}  Kh7 {[%clk 0:00:07]} 29. Bd6 {[%clk 0:01:38]}  Nxc3 {[%clk 0:00:05]} 30. Bxf8 {[%clk 0:01:36]}  Rxf8 {[%clk 0:00:06]} 31. d5 {[%clk 0:01:33]}  Nb5 {[%clk 0:00:05]} 32. d6 {[%clk 0:01:32]} 1-0


[Site "https://www.chess.com"]

[Event "Titled Tuesday Blitz January 31 Early 2023"]
[White "Cramling Bellon, Anna"]
[Black "Zampronha, Wladimir Camilo"]
[WhiteFideId "32009232"]
[BlackFideId "2103087"]
[WhiteElo "2043"]
[BlackElo "2176"]
[Result "0-1"]
[Round "11"]
[TimeControl "180+2"]
[Date "2023.01.31"]
[WhiteClock "0:00:01"]
[BlackClock "0:00:29"]

1. d4 {[%clk 0:03:00]}  Nf6 {[%clk 0:02:59]} 2. c4 {[%clk 0:03:01]}  e6 {[%clk 0:02:59]} 3. Nc3 {[%clk 0:02:54]}  Bb4 {[%clk 0:02:59]} 4. Qc2 {[%clk 0:02:54]}  c5 {[%clk 0:02:56]} 5. dxc5 {[%clk 0:02:53]}  Na6 {[%clk 0:02:55]} 6. a3 {[%clk 0:02:45]}  Bxc3+ {[%clk 0:02:55]} 7. Qxc3 {[%clk 0:02:46]}  Nxc5 {[%clk 0:02:55]} 8. f3 {[%clk 0:02:33]}  a5 {[%clk 0:02:46]} 9. Bg5 {[%clk 0:02:29]}  h6 {[%clk 0:02:39]} 10. Bh4 {[%clk 0:02:24]}  Nfe4 {[%clk 0:02:21]} 11. Bxd8 {[%clk 0:01:02]}  Nxc3 {[%clk 0:02:21]} 12. Bxa5 {[%clk 0:00:50]}  Rxa5 {[%clk 0:02:15]} 13. bxc3 {[%clk 0:00:48]}  d6 {[%clk 0:01:49]} 14. e4 {[%clk 0:00:48]}  Bd7 {[%clk 0:01:49]} 15. Ne2 {[%clk 0:00:41]}  Ke7 {[%clk 0:01:49]} 16. Nd4 {[%clk 0:00:39]}  Rha8 {[%clk 0:01:48]} 17. Nc2 {[%clk 0:00:32]}  Ba4 {[%clk 0:01:35]} 18. Nb4 {[%clk 0:00:32]}  Bb3 {[%clk 0:01:30]} 19. Be2 {[%clk 0:00:21]}  Rxa3 {[%clk 0:01:30]} 20. Rxa3 {[%clk 0:00:21]}  Rxa3 {[%clk 0:01:30]} 21. O-O {[%clk 0:00:20]}  Ba4 {[%clk 0:01:25]} 22. Rb1 {[%clk 0:00:14]}  Rxc3 {[%clk 0:01:19]} 23. Ra1 {[%clk 0:00:12]}  Bd7 {[%clk 0:00:58]} 24. Ra7 {[%clk 0:00:10]}  Rb3 {[%clk 0:00:56]} 25. Nc2 {[%clk 0:00:07]}  Rb2 {[%clk 0:00:56]} 26. Nd4 {[%clk 0:00:05]}  e5 {[%clk 0:00:52]} 27. Nb5 {[%clk 0:00:02]}  Bxb5 {[%clk 0:00:52]} 28. cxb5 {[%clk 0:00:03]}  Rxe2 {[%clk 0:00:51]} 29. b6 {[%clk 0:00:02]}  Rb2 {[%clk 0:00:51]} 30. g3 {[%clk 0:00:01]}  g5 {[%clk 0:00:51]} 31. h4 {[%clk 0:00:01]}  Rxb6 {[%clk 0:00:51]} 32. hxg5 {[%clk 0:00:01]}  hxg5 {[%clk 0:00:52]} 33. f4 {[%clk 0:00:02]}  gxf4 {[%clk 0:00:50]} 34. gxf4 {[%clk 0:00:03]}  exf4 {[%clk 0:00:49]} 35. Kf2 {[%clk 0:00:03]}  Rb3 {[%clk 0:00:48]} 36. Ra5 {[%clk 0:00:03]}  Ke6 {[%clk 0:00:44]} 37. Ra1 {[%clk 0:00:02]}  Nxe4+ {[%clk 0:00:32]} 38. Ke2 {[%clk 0:00:01]}  Re3+ {[%clk 0:00:29]} 39. Kf1 {[%clk 0:00:01]}  f5 {[%clk 0:00:29]} 0-1


[Site "https://www.chess.com"]

[Event "Titled Tuesday Blitz January 31 Early 2023"]
[White "Hertlein, Irena"]
[Black "Mitrovic, Darko R"]
[WhiteFideId "21817618"]
[BlackFideId "927023"]
[WhiteElo "1994"]
[BlackElo "2220"]
[Result "1-0"]
[Round "11"]
[TimeControl "180+2"]
[Date "2023.01.31"]
[WhiteClock "0:00:06"]
[BlackClock "0:00:02"]

1. Nf3 {[%clk 0:03:00]}  c5 {[%clk 0:03:00]} 2. c4 {[%clk 0:03:00]}  e6 {[%clk 0:02:59]} 3. Nc3 {[%clk 0:02:56]}  Nc6 {[%clk 0:02:57]} 4. d4 {[%clk 0:02:54]}  cxd4 {[%clk 0:02:53]} 5. Nxd4 {[%clk 0:02:55]}  Nf6 {[%clk 0:02:52]} 6. Ndb5 {[%clk 0:02:48]}  Bc5 {[%clk 0:02:34]} 7. Nd6+ {[%clk 0:02:45]}  Ke7 {[%clk 0:02:33]} 8. Bf4 {[%clk 0:02:36]}  Qb6 {[%clk 0:02:20]} 9. e3 {[%clk 0:02:11]}  Qxb2 {[%clk 0:02:15]} 10. Ndb5 {[%clk 0:01:23]}  e5 {[%clk 0:01:29]} 11. Rb1 {[%clk 0:01:19]}  Qxb1 {[%clk 0:01:13]} 12. Qxb1 {[%clk 0:01:11]}  exf4 {[%clk 0:01:13]} 13. Nc7 {[%clk 0:01:10]}  Rb8 {[%clk 0:01:07]} 14. N7d5+ {[%clk 0:01:10]}  Nxd5 {[%clk 0:01:06]} 15. Nxd5+ {[%clk 0:01:10]}  Kd8 {[%clk 0:00:49]} 16. Be2 {[%clk 0:00:51]}  fxe3 {[%clk 0:00:48]} 17. fxe3 {[%clk 0:00:50]}  d6 {[%clk 0:00:46]} 18. O-O {[%clk 0:00:49]}  Be6 {[%clk 0:00:45]} 19. Qe4 {[%clk 0:00:40]}  Ne5 {[%clk 0:00:43]} 20. Nf4 {[%clk 0:00:34]}  Ke7 {[%clk 0:00:11]} 21. Nxe6 {[%clk 0:00:28]}  fxe6 {[%clk 0:00:07]} 22. Qh4+ {[%clk 0:00:28]}  Kd7 {[%clk 0:00:07]} 23. Kh1 {[%clk 0:00:22]}  h6 {[%clk 0:00:06]} 24. Qg3 {[%clk 0:00:21]}  g5 {[%clk 0:00:05]} 25. h4 {[%clk 0:00:20]}  b6 {[%clk 0:00:03]} 26. h5 {[%clk 0:00:17]}  Rbf8 {[%clk 0:00:03]} 27. Rxf8 {[%clk 0:00:16]}  Rxf8 {[%clk 0:00:03]} 28. Bf3 {[%clk 0:00:16]}  Rf6 {[%clk 0:00:03]} 29. Qe1 {[%clk 0:00:14]}  a5 {[%clk 0:00:03]} 30. Qd1 {[%clk 0:00:13]}  Ke7 {[%clk 0:00:03]} 31. Qa4 {[%clk 0:00:13]}  Bxe3 {[%clk 0:00:02]} 32. Qb5 {[%clk 0:00:12]}  Bc5 {[%clk 0:00:02]} 33. Qa6 {[%clk 0:00:12]}  Nxf3 {[%clk 0:00:02]} 34. gxf3 {[%clk 0:00:10]}  Rf4 {[%clk 0:00:02]} 35. Qb7+ {[%clk 0:00:11]}  Kf6 {[%clk 0:00:03]} 36. Qa8 {[%clk 0:00:08]}  Rh4+ {[%clk 0:00:02]} 37. Kg2 {[%clk 0:00:06]}  Rxh5 {[%clk 0:00:02]} 38. Qf8+ {[%clk 0:00:06]}  Ke5 {[%clk 0:00:02]} 39. Qg7+ {[%clk 0:00:06]} 1-0


[Site "https://www.chess.com"]

[Event "Titled Tuesday Blitz January 31 Early 2023"]
[White "Clawitter, Craig"]
[Black "Kostiukov, Alexandr"]
[WhiteFideId "2023105"]
[BlackFideId "14108100"]
[WhiteElo "2050"]
[BlackElo "2271"]
[Result "0-1"]
[Round "11"]
[TimeControl "180+2"]
[Date "2023.01.31"]
[WhiteClock "0:00:01"]
[BlackClock "0:00:04"]

1. e4 {[%clk 0:02:59]}  c5 {[%clk 0:00:13]} 2. Nf3 {[%clk 0:02:58]}  g6 {[%clk 0:00:11]} 3. d4 {[%clk 0:02:58]}  cxd4 {[%clk 0:00:12]} 4. Nxd4 {[%clk 0:02:56]}  Bg7 {[%clk 0:00:12]} 5. Nc3 {[%clk 0:02:55]}  Nc6 {[%clk 0:00:13]} 6. Be3 {[%clk 0:02:55]}  Nf6 {[%clk 0:00:12]} 7. Bc4 {[%clk 0:02:55]}  O-O {[%clk 0:00:12]} 8. Bb3 {[%clk 0:02:55]}  a5 {[%clk 0:00:12]} 9. O-O {[%clk 0:02:54]}  a4 {[%clk 0:00:11]} 10. Nxa4 {[%clk 0:02:54]}  Nxe4 {[%clk 0:00:10]} 11. Nb5 {[%clk 0:02:52]}  d5 {[%clk 0:00:09]} 12. Nb6 {[%clk 0:02:31]}  Ra5 {[%clk 0:00:08]} 13. a4 {[%clk 0:02:23]}  d4 {[%clk 0:00:06]} 14. Nc4 {[%clk 0:01:57]}  dxe3 {[%clk 0:00:05]} 15. Nxa5 {[%clk 0:01:45]}  exf2+ {[%clk 0:00:06]} 16. Kh1 {[%clk 0:01:44]}  Qxa5 {[%clk 0:00:06]} 17. Qd5 {[%clk 0:01:34]}  Be6 {[%clk 0:00:04]} 18. Qxe4 {[%clk 0:01:33]}  Bxb3 {[%clk 0:00:04]} 19. cxb3 {[%clk 0:01:33]}  Qb4 {[%clk 0:00:02]} 20. Qxb4 {[%clk 0:01:24]}  Nxb4 {[%clk 0:00:02]} 21. Rxf2 {[%clk 0:01:24]}  Nd3 {[%clk 0:00:03]} 22. Re2 {[%clk 0:01:13]}  e5 {[%clk 0:00:03]} 23. Rd1 {[%clk 0:01:05]}  Nc5 {[%clk 0:00:02]} 24. Re3 {[%clk 0:00:54]}  f5 {[%clk 0:00:02]} 25. Nc3 {[%clk 0:00:47]}  e4 {[%clk 0:00:02]} 26. b4 {[%clk 0:00:42]}  Nd3 {[%clk 0:00:03]} 27. Rdxd3 {[%clk 0:00:37]}  exd3 {[%clk 0:00:03]} 28. Rxd3 {[%clk 0:00:38]}  Re8 {[%clk 0:00:03]} 29. g3 {[%clk 0:00:30]}  Re1+ {[%clk 0:00:03]} 30. Kg2 {[%clk 0:00:30]}  Rc1 {[%clk 0:00:03]} 31. Rd8+ {[%clk 0:00:25]}  Bf8 {[%clk 0:00:03]} 32. Kf3 {[%clk 0:00:13]}  Rc2 {[%clk 0:00:03]} 33. Nd5 {[%clk 0:00:07]}  Rxb2 {[%clk 0:00:04]} 34. b5 {[%clk 0:00:07]}  Kf7 {[%clk 0:00:04]} 35. Rd7+ {[%clk 0:00:07]}  Ke6 {[%clk 0:00:04]} 36. Rd8 {[%clk 0:00:04]}  Bd6 {[%clk 0:00:03]} 37. Nf4+ {[%clk 0:00:02]}  Bxf4 {[%clk 0:00:04]} 38. Kxf4 {[%clk 0:00:02]}  Rb4+ {[%clk 0:00:04]} 39. Kg5 {[%clk 0:00:02]}  Rg4+ {[%clk 0:00:04]} 40. Kh6 {[%clk 0:00:02]}  Rxa4 {[%clk 0:00:05]} 41. Rb8 {[%clk 0:00:01]}  Ra2 {[%clk 0:00:03]} 42. Rxb7 {[%clk 0:00:01]}  Ke5 {[%clk 0:00:04]} 0-1


[Site "https://www.chess.com"]

[Event "Titled Tuesday Blitz January 31 Early 2023"]
[White "Sadykov, Ramil"]
[Black "Burdalev, Kirill"]
[WhiteFideId "24113590"]
[BlackFideId "14121913"]
[WhiteElo "2345"]
[BlackElo "2368"]
[Result "1-0"]
[Round "11"]
[TimeControl "180+2"]
[Date "2023.01.31"]
[WhiteClock "0:00:03"]
[BlackClock "0:00:01"]

1. d4 {[%clk 0:03:00]}  Nf6 {[%clk 0:02:59]} 2. Nc3 {[%clk 0:02:59]}  d5 {[%clk 0:02:54]} 3. Bf4 {[%clk 0:02:57]}  a6 {[%clk 0:02:43]} 4. e3 {[%clk 0:02:55]}  Bf5 {[%clk 0:02:39]} 5. Nf3 {[%clk 0:02:54]}  e6 {[%clk 0:02:36]} 6. Ne5 {[%clk 0:02:54]}  h6 {[%clk 0:02:22]} 7. g4 {[%clk 0:02:52]}  Bh7 {[%clk 0:02:15]} 8. Bd3 {[%clk 0:02:52]}  Bxd3 {[%clk 0:02:05]} 9. Nxd3 {[%clk 0:02:52]}  Nbd7 {[%clk 0:02:02]} 10. Qf3 {[%clk 0:02:51]}  c5 {[%clk 0:01:59]} 11. O-O-O {[%clk 0:02:23]}  c4 {[%clk 0:01:53]} 12. Ne5 {[%clk 0:02:17]}  Bb4 {[%clk 0:01:49]} 13. Nb1 {[%clk 0:02:02]}  Qa5 {[%clk 0:01:28]} 14. a3 {[%clk 0:01:48]}  Be7 {[%clk 0:01:27]} 15. Nxd7 {[%clk 0:01:36]}  Nxd7 {[%clk 0:01:24]} 16. e4 {[%clk 0:01:34]}  Nf6 {[%clk 0:01:05]} 17. exd5 {[%clk 0:01:21]}  Nxd5 {[%clk 0:01:03]} 18. Bd2 {[%clk 0:01:19]}  Bg5 {[%clk 0:00:51]} 19. h4 {[%clk 0:01:11]}  Bxd2+ {[%clk 0:00:48]} 20. Rxd2 {[%clk 0:01:12]}  c3 {[%clk 0:00:39]} 21. Nxc3 {[%clk 0:01:10]}  Nxc3 {[%clk 0:00:32]} 22. Qxc3 {[%clk 0:01:10]}  Qxc3 {[%clk 0:00:30]} 23. bxc3 {[%clk 0:01:11]}  Rc8 {[%clk 0:00:30]} 24. Rh3 {[%clk 0:00:55]}  Kd7 {[%clk 0:00:29]} 25. h5 {[%clk 0:00:43]}  Rc4 {[%clk 0:00:28]} 26. Kb2 {[%clk 0:00:43]}  Rhc8 {[%clk 0:00:27]} 27. f4 {[%clk 0:00:40]}  Kd6 {[%clk 0:00:27]} 28. g5 {[%clk 0:00:40]}  R8c6 {[%clk 0:00:24]} 29. Kb3 {[%clk 0:00:35]}  Kd5 {[%clk 0:00:21]} 30. Re2 {[%clk 0:00:32]}  Rb6+ {[%clk 0:00:18]} 31. Ka2 {[%clk 0:00:33]}  f6 {[%clk 0:00:11]} 32. g6 {[%clk 0:00:20]}  Rbc6 {[%clk 0:00:11]} 33. f5 {[%clk 0:00:17]}  exf5 {[%clk 0:00:08]} 34. Re7 {[%clk 0:00:13]}  Rc7 {[%clk 0:00:07]} 35. Rhe3 {[%clk 0:00:04]}  f4 {[%clk 0:00:07]} 36. Rxc7 {[%clk 0:00:02]}  Rxc7 {[%clk 0:00:08]} 37. Re1 {[%clk 0:00:02]}  f3 {[%clk 0:00:08]} 38. Kb3 {[%clk 0:00:01]}  f5 {[%clk 0:00:04]} 39. Re5+ {[%clk 0:00:01]}  Kd6 {[%clk 0:00:03]} 40. Rxf5 {[%clk 0:00:02]}  Re7 {[%clk 0:00:01]} 41. Rxf3 {[%clk 0:00:03]}  b5 {[%clk 0:00:01]} 42. Rf5 {[%clk 0:00:03]} 1-0